Cogmind - Beta 14 @@@ ROGUE MODE // 2024.09.21 @ 19:30:26 Player: OctagonalPrism Result: Destroyed by D-53 Grenadier with Mini Grenade Launcher Performance ------------- Evolutions (0) 0 Regions Visited (2) 400 Robots Destroyed (26) 130 Value Destroyed (551) 551 Prototype IDs (2) 40 Alien Tech Used (0) 0 Bonus (0) 0 TOTAL SCORE: 1121 Bonus ------- None Cogmind --------- Core Integrity 0/250 Matter 300/300 Energy 99/100 System Corruption 0% Temperature Cool (0) Movement Rolling (95) Ox1 Location -10/Mines Parts ------- > --- POWER (1) -------- (None) > --- PROPULSION (2) --- Wheel > --- UTILITY (2) ------ Large Storage Unit > --- WEAPON (2) ------- (None) > --- INVENTORY (15) --- Ion Engine Small Storage Unit Structural Scanner Sensor Array Signal Interpreter ECM Suite Hacking Suite Hacking Suite EM Pulse Gun Mining Claw Peak State ------------ > --- POWER ------------ Ion Engine > --- PROPULSION ------- Wheel Wheel > --- UTILITY ---------- Small Storage Unit Large Storage Unit > --- WEAPON ----------- EM Pulse Gun EM Pulse Gun > --- INVENTORY -------- Sensor Array Signal Interpreter ECM Suite Hacking Suite Hacking Suite EM Pulse Gun Mining Claw [Rating: 8] Favorites ----------- Power Ion Engine Engine Ion Engine Propulsion Light Treads Treads Light Treads Wheel Wheel Utility Small Storage Unit Storage Small Storage Unit Weapon EM Pulse Gun Energy Gun EM Pulse Gun Ballistic Gun Assault Rifle Ballistic Cannon Light Cannon Slashing Weapon Mining Claw Build | -11 -10 -10 ------- Run | Yrd Mat Min Slots Evolved . | . . . Power . | . . . Propulsion . | . . . Utility . | . . . Weapon . | . . . Parts Attached 18 | 7 10 1 Power 3 | 1 2 . Engine 3 | 1 2 . Core . | . . . Reactor . | . . . Propulsion 5 | 2 3 . Treads 3 | 2 1 . Leg . | . . . Wheel 2 | . 2 . Hover . | . . . Flight . | . . . Utility 3 | 2 1 . Device . | . . . Storage 3 | 2 1 . Processor . | . . . Hackware . | . . . Protection . | . . . Artifact . | . . . Weapon 7 | 2 4 1 Energy Gun 3 | . 2 1 Energy Cannon . | . . . Ballistic Gun 2 | 2 . . Ballistic Cannon 1 | . 1 . Launcher . | . . . Special Weapon . | . . . Impact Weapon . | . . . Slashing Weapon 1 | . 1 . Piercing Weapon . | . . . Special Melee Weapon . | . . . Unidentified Prototypes . | . . . Parts Lost 7 | . 3 4 Power 2 | . 1 1 Propulsion 3 | . 2 1 Utility . | . . . Weapon 2 | . . 2 Highest Loss Streak 4 | . 2 4 To Critical Strikes . | . . . Average Slot Usage (%) 92 | . 92 95 Engine 10 | . 10 12 Treads 15 | . 19 . Wheel 9 | . 4 26 Storage 27 | . 28 27 Energy Gun 9 | . 8 16 Ballistic Gun 10 | . 13 . Ballistic Cannon 3 | . 4 . Slashing Weapon 3 | . 1 10 Peak Build Rating 8 | 7 8 8 Average Rating 6 | 4 6 7 On Entrance 5 | . 7 8 Naked Turns . | . . . Heaviest Build 35 | 18 35 34 Greatest Support 40 | 40 40 20 Greatest Overweight (x) 11 | . 11 2 Average Overweight (x) . | . . 1 Largest Inventory Capacity 15 | 8 15 15 Average Capacity 13 | 7 13 15 Most Carried 10 | 2 9 10 Average Carried 5 | 1 4 9 Final Capacity 15 | 8 15 15 Final Carried 10 | 2 9 10 Class Distribution -------------------- 100% | Mutant Dominant Class ---------------- Mutant | -10/Materials Mutant | -10/Mines Resources | -11 -10 -10 ----------- Run | Yrd Mat Min Matter Collected 672 | 268 401 3 Remotely . | . . . Salvage Created 725 | 71 594 60 Parts 59 | 6 47 6 Haulers Intercepted 1 | . 1 . Recyclers Shooed . | . . . Parts Field Recycled . | . . . Retrieved Matter . | . . . Parts Self-Destructed . | . . . Prevented . | . . . Kills | -11 -10 -10 ------- Run | Yrd Mat Min Combat Hostiles Destroyed 17 | . 15 2 Guns 9 | . 7 2 Cannons 7 | . 7 . AOE 1 | . 1 . Classes Destroyed 10 | 2 7 1 Worker 2 | . 2 . Builder 1 | . 1 . Tunneler 2 | 1 . 1 Hauler 1 | . 1 . Recycler 1 | 1 . . Operator 2 | . 2 . Watcher 1 | . 1 . Swarmer 4 | . 3 1 Grunt 12 | . 12 . Assembled 1 | . . 1 Best Kill Streak 4 | 2 4 1 Combat Bots Only 3 | . 3 1 Max Kills in Single Turn 3 | 1 3 1 Gunslinging . | . . . Exploded 1 | . 1 . Melee . | . . . Uniques/NPCs Destroyed . | . . . Combat | -11 -10 -10 -------- Run | Yrd Mat Min Hostile Shots Fired 115 | . 93 22 Missed 25 | . 19 6 Damage Taken 1253 | . 875 378 Core 257 | . 107 150 Absorbed by Shields . | . . . Regen/Repaired (Parts) 31 | . 31 . Core Remaining (%) 100 | 100 . . Volleys Fired 73 | 7 60 6 Largest 2 | 2 2 2 Hottest 80 | 40 80 80 Shots Fired 145 | 14 120 11 Gun 114 | 14 89 11 Cannon 31 | . 31 . Launcher . | . . . Special . | . . . Kinetic 108 | 14 94 . Thermal . | . . . Explosive . | . . . Electromagnetic 37 | . 26 11 Robot Hit Streak 8 | 5 8 1 Robot Miss Streak 5 | 2 5 5 Penetration Max . | . . . Secondary Targets . | . . . Shots Hit Robots 88 | 10 73 5 Core Hits 39 | 4 32 3 Critical Kills . | . . . Critical Parts Destroyed 1 | . 1 . Critical Strikes 1 | . 1 . Destroy 1 | . 1 . Melee Attacks 10 | . 8 2 Impact . | . . . Slashing 10 | . 8 2 Piercing . | . . . Sneak Attacks 2 | . . 2 Combat Hostiles . | . . . Follow-up Attacks . | . . . Damage Inflicted 1374 | 105 1129 140 Guns 789 | 105 642 42 Cannons 380 | . 380 . Explosions 107 | . 107 . Melee 94 | . . 94 Ramming 4 | . . 4 Kinetic 899 | 105 794 . Thermal 107 | . 107 . Explosive . | . . . Electromagnetic 270 | . 228 42 Impact . | . . . Slashing 94 | . . 94 Piercing . | . . . Highest Corruption . | . . . Average Corruption . | . . . Corruption Purged . | . . . Corruption Blocked . | . . . Overload Shots . | . . . Overflow Damage 45 | . 31 14 Projectiles 21 | . 21 . Explosions 10 | . 10 . Melee 14 | . . 14 Knockbacks 8 | . 8 . Impact . | . . . Kinetic 7 | . 7 . Secondary 1 | . 1 . Self-Inflicted Damage 34 | . 32 2 Shots 1 | . 1 . Rammed 1 | . . 1 Targets Rammed 1 | . . 1 Kicked . | . . . Crushed . | . . . Highest Temperature 45 | . 45 36 Average Temperature 15 | . 14 20 Received Heat Transfer 377 | . 357 20 Siege Activations . | . . . Robots Corrupted . | . . . Combat Hostiles . | . . . Parts Fried 2 | . 2 . Impact Corruptions . | . . . Robots Melted . | . . . Combat Hostiles . | . . . Parts Melted . | . . . Heat Transferred 150 | . 150 . Parts Sabotaged . | . . . Parts Stolen . | . . . Parts Stripped . | . . . Power Chain Reactions 2 | . 2 . Alert | -11 -10 -10 ------- Run | Yrd Mat Min Peak Influence 268 | 10 268 87 Initial 82 | . 6 82 Average 107 | 3 127 72 Maximum Alert Level 1 | . 1 . Low Security (%) 84 | 100 77 100 Level 1 15 | . 22 . Level 2 . | . . . Level 3 . | . . . Level 4 . | . . . Level 5 . | . . . High Security . | . . . Max Security . | . . . Squads Dispatched 4 | . 4 . Investigation 3 | . 3 . Extermination . | . . . Reinforcement 1 | . 1 . Assault . | . . . Garrison . | . . . Intercept . | . . . Searches Triggered . | . . . Construction Impeded . | . . . Haulers Reinforced . | . . . Active Scanning Responses . | . . . Cargo Convoy Interrupts . | . . . Stealth | -11 -10 -10 --------- Run | Yrd Mat Min Distress Signals 3 | . 2 1 Communications Jammed . | . . . Distress Signals . | . . . Times Spotted 42 | . 28 14 Peak Tracking Total 13 | . 6 13 Tactical Retreats 4 | . 1 3 Traps | -11 -10 -10 ------- Run | Yrd Mat Min Traps Triggered . | . . . Indirectly . | . . . Trap Hack Attempts . | . . . Triggered . | . . . Disarmed . | . . . Reprogrammed . | . . . Reused . | . . . Traps Extracted . | . . . Installed . | . . . Triggered . | . . . Machines | -11 -10 -10 ---------- Run | Yrd Mat Min Machines Disabled . | . . . Max in Single Turn . | . . . Machines Repaired . | . . . Machines Dismantled . | . . . Machines Sabotaged . | . . . Overloaded Fab Kills . | . . . Hacking | -11 -10 -10 --------- Run | Yrd Mat Min Machines Accessed 11 | . 10 1 Terminals 7 | . 7 . Fabricators . | . . . Repair Stations 1 | . 1 . Recycling Units 2 | . 2 . Scanalyzers . | . . . Garrison Access . | . . . Total Hacks 41 | . 40 1 Successful 27 | . 26 1 Failed 14 | . 14 . Catastrophic 1 | . 1 . Database Lockouts . | . . . Manual 22 | . 22 . Terminals 29 | . 29 . Fabricators . | . . . Repair Stations 5 | . 5 . Recycling Units 6 | . 6 . Scanalyzers . | . . . Garrison Access . | . . . Terminal Hacks 13 | . 12 1 Robot Analysis 2 | . 2 . Prototype ID Bank 1 | . 1 . Open Door 1 | . . 1 Branch Access Points 1 | . 1 . Terminal Index 1 | . 1 . Repair Station Index 1 | . 1 . Alert Level 1 | . 1 . Locate Traps 3 | . 3 . Zone Layout 2 | . 2 . Fabricator Hacks . | . . . Repair Station Hacks 2 | . 2 . Scan Component 1 | . 1 . Repair 1 | . 1 . Recycling Unit Hacks 2 | . 2 . Report Inventory 2 | . 2 . Scanalyzer . | . . . Garrison Access Hacks . | . . . Unauthorized Hacks 10 | . 10 . Terminals 6 | . 6 . Assimilate 1 | . 1 . Botnet 3 | . 3 . Disrupt 1 | . 1 . Operators 1 | . 1 . Fabricators . | . . . Repair Stations 1 | . 1 . Mechanics 1 | . 1 . Recycling Units 3 | . 3 . Reject 2 | . 2 . Recyclers 1 | . 1 . Scanalyzers . | . . . Garrison Access . | . . . Data Cores Recovered 1 | . 1 . Used 1 | . 1 . Hacking Detections 9 | . 9 . Full Trace Events 3 | . 3 . Feedback Events . | . . . Feedback Blocked . | . . . Robot Schematics Acquired . | . . . Robots Built . | . . . Authchips . | . . . Time . | . . . Total Robot Build Rating . | . . . Part Schematics Acquired . | . . . Parts Built . | . . . Authchips . | . . . Time . | . . . Total Part Build Rating . | . . . Parts Repaired 1 | . 1 . Time 26 | . 26 . Parts Recycled . | . . . Recycled Matter . | . . . Retrieved Matter . | . . . Retrieved Components . | . . . Parts Scanalyzed . | . . . Part Schematics Acquired . | . . . Parts Damaged . | . . . Bothacking | -11 -10 -10 ------------ Run | Yrd Mat Min Used RIF Installer . | . . . Robots Hacked . | . . . Non-combat . | . . . Combat . | . . . Robot Hacks Applied . | . . . Relay Couplers Released . | . . . Fabnet Peak Effective % . | . . . Robots Rewired . | . . . Allies Hacked . | . . . Hacks Repelled . | . . . Allies | -11 -10 -10 -------- Run | Yrd Mat Min Total Allies 4 | . 1 3 Largest Group 3 | . 1 3 Highest-Rated Group 40 | . 10 40 Highest-Rated Ally 16 | . 10 16 Total Orders . | . . . Ally Attacks 11 | . . 11 Total Damage 70 | . . 70 Kills . | . . . Allies Corrupted . | . . . Allies Melted . | . . . Intel | -11 -10 -10 ------- Run | Yrd Mat Min Robot Analysis Total 2 | . 2 . Derelict Logs Recovered 1 | . . 1 Drone Launches . | . . . Drone Recoveries . | . . . Exploration | -11 -10 -10 ------------- Run | Yrd Mat Min Turns Passed 1559 | 112 1129 318 Spaces Moved 894 | 49 547 298 Core 5 | 4 1 . Treads 426 | 45 381 . Legs . | . . . Wheels 463 | . 165 298 Hover . | . . . Flight . | . . . Fastest Speed 50 | 50 95 95 Average Speed 134 | 151 154 96 Slowest Speed 600 | 160 600 110 Overloaded Moves . | . . . Propulsion Burnouts . | . . . Robots Hopped . | . . . Cave-ins Triggered . | . . . Exploration Rate (%) 51 | 3 83 67 Regions Visited 2 Branch Regions 1 Pre-discovered Areas 1 | . . 1 Known Exits Taken 1 | . 1 . Unknown Exits Taken 1 | 1 . . Scrap Searched . | . . . Spaces Dug 5 | . 5 . Terrain Destroyed 8 | . 8 . Melee 5 | . 5 . Projectile . | . . . AOE 3 | . 3 . Terrain Rammed . | . . . Walls Destroyed . | . . . Machines Disabled . | . . . Actions | -11 -10 -10 --------- Run | Yrd Mat Min Total 1084 | 71 698 315 Wait 69 | 7 56 6 Move 892 | 48 546 298 Hop . | . . . Pick Up 12 | 2 10 . Fast Attach 12 | 7 5 . Attach 1 | . 1 . Detach 3 | . 2 1 Swap 5 | . 4 1 Drop 6 | . 6 . Fire 73 | 7 60 6 Melee 10 | . 8 2 Ram 1 | . . 1 Kick . | . . . Crush . | . . . Escape Stasis . | . . . Rewire . | . . . Trap . | . . . Miscellaneous . | . . . Route ------- -11/Scrapyard -10/Materials (discovered 4 exits: [*Mat x2] / *Min x2) -10/Mines (discovered 2 exits: [*Mat x2]) History --------- Turn | Location | Event 7 | -11/Scrapyard | Discovered new exit (range 15) 113 | -11/Scrapyard | Entered Materials 232 | -10/Materials | Repaired Ion Engine 310 | -10/Materials | Build established: Mutant 496 | -10/Materials | Discovered new exit (range 3) 671 | -10/Materials | Identified exit to Mines 711 | -10/Materials | Discovered new exit (range 7) 1242 | -10/Materials | Entered Mines 1243 | -10/Mines | Discovered new exit (range 12) 1245 | -10/Mines | Learned location of Mines (-9) 1331 | -10/Mines | Assisted by bots powering up and referring to "LRC-V3" 1373 | -10/Mines | Discovered new exit (range 9) 1383 | -10/Mines | Found the Drone Emporium 1448 | -10/Mines | Found a hidden stash of uninstalled traps 1471 | -10/Mines | Assembled infested the area 1476 | -10/Mines | Assisted by a Guerilla fighting off Assembled 1530 | -10/Mines | Lost 4 allies 1531 | -10/Mines | Core integrity fell below 50% 1547 | -10/Mines | Core integrity fell below 20% 1560 | -10/Mines | Destroyed by D-53 Grenadier with Mini Grenade Launcher Last Messages --------------- Mercenary 1a overheating. Mercenary 1a destroyed. as-30033 sneak attacks. K-01 Serf system corrupted by crushing effect. K-01 Serf destroyed. Knocked back. Slammed into K-01 Serf. S-10 Pest destroyed. as-64412 sneak attacks. T-07 Excavator system corrupted by crushing effect. T-07 Excavator knocked back. T-07 Excavator system terminally corrupted. Ion Engine destroyed. Acquired 3 matter. Wheel destroyed. EM Pulse Gun destroyed. Knocked back. as-30033 destroyed. EM Pulse Gun destroyed. Map ----- +----------------------------------------------------+ | #?# # ?????????????????????????## ## # ## # | | ### # ??????????????????????????# ##### ## # | | # ??????????????????????????# #???# ## # | | ### # ???????????????????????#### ##### ## # | | #### ##### #????????##????????????# ## # | | #???# ???????? #????????????# ############ # | | ### #???# #???????? #????????????# #??????????# # | | ### ###?# #???????? #?#?####?????# #?????###### # | | ### #??????## ###=## ###### #?????# # | | #?????## ## # [%* #?????# ###### | | ### ####### % #######?????# #????? | | #?# ### ##??######### #????? | | #?# ###### #?## #### #????? | | #?# #????## ##??# #????? | | # # ##?# #?????# ##???## # #####????? | | # ####??# #?????# ###?????## ## #????????? | | # #?????# #?????# #????????## ##### #????????? | | # ##????# #?????# #?#######?# ####?## ##???????? | | ###### #?????# ### #?# ###### #???????? | | #?????# #?# #???????? | | ########?????##### d ###### #### ##??????? | | ##????????????????# #?# #??## ####??## | | #?????????????????# ### #???# ####= | | ##????????????###?## % #???# |%# | | ###????????????##""## #####???# *!# | | ???????????????#" # @ ## #???????## ##### | | ???????????????# ! u #?##????????## #???? | | ???????????????# r #????????????## #???? | | ???????????????# # < #?????????????#####???? | | ???????????????## ?# #?????????????????????? | | ????????????????##??## #?????????????????????? | | ?????????????????????#######?????????????????????? | | ?????????????????????????????????????????????????? | | | | | | | | | | | | | | | | | | | | | | | | | | | | | | | | | | | +----------------------------------------------------+ Best States ------------- Heat Dissipation 25 Energy Generation 10 Energy Capacity 250 Matter Stores 300 Matter Capacity 300 Sight Range 16 Terrain Scan Density 10 Evasion (%) 41 Recoil Reduction 2 Item Schematics ----------------- None Robot Schematics ------------------ None Fabricated ------------ Nothing Alien Tech Used ----------------- None Achievements -------------- None Challenges ------------ None Game ------ Seed FocalSpectralCyclogen Manual? 0 Play Time 00:16:51 Cumulative 116.5 hours Start 2024.09.21 @ 19:16:23 End 2024.09.21 @ 19:30:26 Sessions 1 Manual Loads 0 Difficulty Rogue Special Mode None Game No. 107 Rogue 107 Adventurer 0 Explorer 0 Win Type - Total 1 Types 1/0/0/0/0/0/0/0/0 Lore% 44 Gallery% 54 Achievement% 44 Wizard Run 0 Options --------- Layout 2 ASCII 0 Keyboard 0 Movement Arrows Keybinds 0 Fullscreen 1 Font 16/Terminus Map View 55x47 Zoom Use 0% Tactical HUD 0 Map Filters NONE Filters NONE Steam 1 RUN: b9bc67cc-c40e-4000-ae7d-3da2133566c2